Cogmind - Beta 13 *** ADVENTURER MODE // 2024.05.07 @ 20:22:59 Player: Rustedshell Result: Destroyed by as-72951 with Assembled Rifle Performance ------------- Evolutions (0) 0 Regions Visited (2) 400 Robots Destroyed (26) 130 Value Destroyed (635) 635 Prototype IDs (2) 40 Alien Tech Used (0) 0 Bonus (0) 0 TOTAL SCORE: 1205 Bonus ------- None Cogmind --------- Core Integrity 0/250 Matter 160/300 Energy 265/265 System Corruption 1% Temperature Warm (115) Movement Core (500) Ox9 Location -10/Mines Parts ------- > --- POWER (1) -------- Improved Ion Engine > --- PROPULSION (2) --- (None) > --- UTILITY (2) ------ Large Storage Unit > --- WEAPON (2) ------- Medium Laser > --- INVENTORY (15) --- Improved Ion Engine Large Storage Unit Signal Interpreter Improved Terrain Scanner Seismic Detector Improved Targeting Computer Light Armor Plating Medium Armor Plating Mining Laser Peak State ------------ > --- POWER ------------ Improved Ion Engine > --- PROPULSION ------- Wheel Wheel > --- UTILITY ---------- Large Storage Unit Signal Interpreter > --- WEAPON ----------- Assault Rifle Bore Cannon > --- INVENTORY -------- Improved Ion Engine Improved Ion Engine Large Storage Unit Signal Interpreter Improved Terrain Scanner Seismic Detector Improved Targeting Computer Light Armor Plating Medium Armor Plating Medium Laser Mining Laser [Rating: 13] Favorites ----------- Power Improved Ion Engine Engine Improved Ion Engine Power Core Light Nuclear Core Propulsion Wheel Treads Light Treads Wheel Wheel Utility Large Storage Unit Device Seismic Detector Storage Large Storage Unit Processor Signal Interpreter Weapon Particle Gun Energy Gun Particle Gun Ballistic Gun Assault Rifle Ballistic Cannon Bore Cannon Launcher Grenade Launcher Special Weapon Mining Laser Build | -11 -10 -10 ------- Run | Yrd Mat Min Slots Evolved . | . . . Power . | . . . Propulsion . | . . . Utility . | . . . Weapon . | . . . Parts Attached 31 | 7 11 13 Power 5 | 1 1 3 Engine 4 | 1 1 2 Core 1 | . . 1 Reactor . | . . . Propulsion 7 | 2 3 2 Treads 3 | 1 2 . Leg . | . . . Wheel 4 | 1 1 2 Hover . | . . . Flight . | . . . Utility 5 | 2 3 . Device 2 | 1 1 . Storage 2 | 1 1 . Processor 1 | . 1 . Hackware . | . . . Protection . | . . . Artifact . | . . . Weapon 14 | 2 4 8 Energy Gun 7 | 1 3 3 Energy Cannon . | . . . Ballistic Gun 3 | 1 1 1 Ballistic Cannon 1 | . . 1 Launcher 2 | . . 2 Special Weapon 1 | . . 1 Impact Weapon . | . . . Slashing Weapon . | . . . Piercing Weapon . | . . . Special Melee Weapon . | . . . Unidentified Prototypes . | . . . Parts Lost 12 | . . 12 Power 2 | . . 2 Propulsion 4 | . . 4 Utility 1 | . . 1 Weapon 5 | . . 5 Highest Loss Streak 5 | . . 5 To Critical Strikes . | . . . Average Slot Usage (%) 96 | . 99 85 Engine 12 | . 14 9 Treads 12 | . 13 6 Wheel 13 | . 14 12 Device 5 | . 6 . Storage 14 | . 14 14 Processor 8 | . 7 13 Energy Gun 17 | . 18 16 Ballistic Gun 8 | . 9 3 Naked Turns . | . . . Heaviest Build 38 | 15 33 38 Greatest Support 20 | 10 20 20 Greatest Overweight (x) 10 | 1 3 10 Average Overweight (x) 2 | . 2 2 Largest Inventory Capacity 15 | 8 15 15 Average Capacity 13 | 7 13 15 Most Carried 15 | 6 15 15 Average Carried 10 | 2 10 12 Final Capacity 15 | 8 15 15 Final Carried 15 | 6 15 9 Class Distribution -------------------- 65% | Mutant 34% | Scavenger-Mutant Dominant Class ---------------- Mutant | -10/Materials Mutant | -10/Mines Resources | -11 -10 -10 ----------- Run | Yrd Mat Min Matter Collected 673 | 288 249 136 Remotely . | . . . Salvage Created 935 | 58 612 265 Parts 54 | 9 36 9 Haulers Intercepted 1 | . 1 . Recyclers Shooed 1 | 1 . . Parts Field Recycled . | . . . Retrieved Matter . | . . . Parts Self-Destructed . | . . . Prevented . | . . . Kills | -11 -10 -10 ------- Run | Yrd Mat Min Combat Hostiles Destroyed 24 | . 12 12 Melee 1 | . . 1 Guns 20 | . 12 8 Cannons 2 | . . 2 AOE 1 | . . 1 Classes Destroyed 9 | 1 5 3 Worker 2 | . . 2 Tunneler 3 | 3 . . Hauler 1 | . 1 . Recycler 2 | . 1 1 Watcher 3 | . 3 . Swarmer 2 | . 2 . Grunt 12 | . 10 2 Demolisher 1 | . . 1 Assembled 9 | . . 9 Best Kill Streak 3 | 2 3 3 Combat Bots Only 3 | . 3 3 Max Kills in Single Turn 2 | 1 2 2 Gunslinging 1 | . 1 . Exploded 1 | . . 1 Melee 1 | . . 1 Uniques/NPCs Destroyed . | . . . Combat | -11 -10 -10 -------- Run | Yrd Mat Min Hostile Shots Fired 126 | . 47 79 Missed 35 | . 18 17 Damage Taken 1327 | . 250 1077 Core 257 | . 41 216 Absorbed by Shields . | . . . Ignored by Resistances 374 | . 74 300 Regen/Repaired (Parts) 32 | . 32 . Core Remaining (%) 100 | 100 . . Volleys Fired 90 | 6 48 36 Largest 2 | 2 2 2 Hottest 95 | 60 85 95 Shots Fired 169 | 12 95 62 Gun 148 | 12 95 41 Cannon 12 | . . 12 Launcher 9 | . . 9 Special . | . . . Kinetic 78 | 6 48 24 Thermal 62 | . 39 23 Explosive 9 | . . 9 Electromagnetic 20 | 6 8 6 Robot Hit Streak 14 | 3 14 7 Robot Miss Streak 6 | 1 2 6 Penetration Max . | . . . Secondary Targets 4 | . 3 1 Max Gunslinging Chain 1 | . 1 1 Shots Hit Robots 94 | 7 50 37 Core Hits 61 | 4 26 31 Critical Kills 2 | . . 2 Critical Parts Destroyed 6 | . 1 5 Critical Strikes 11 | . 2 9 Burn 2 | . . 2 Destroy 8 | . 1 7 Corrupt 1 | . 1 . Melee Attacks . | . . . Impact . | . . . Slashing . | . . . Piercing . | . . . Sneak Attacks . | . . . Combat Hostiles . | . . . Follow-up Attacks . | . . . Damage Inflicted 1663 | 89 754 820 Guns 1126 | 89 708 329 Cannons 194 | . . 194 Explosions 288 | . . 288 Melee . | . . . Ramming 55 | . 46 9 Kinetic 618 | 13 341 264 Thermal 488 | . 286 202 Explosive 288 | . . 288 Electromagnetic 214 | 76 81 57 Impact . | . . . Slashing . | . . . Piercing . | . . . Highest Corruption 1 | . . 1 Average Corruption 1 | . . 1 Corruption Purged . | . . . Corruption Blocked . | . . . Overload Shots . | . . . Overflow Damage . | . . . Projectiles . | . . . Explosions . | . . . Melee . | . . . Knockbacks 1 | . . 1 Impact . | . . . Kinetic 1 | . . 1 Secondary . | . . . Self-Inflicted Damage 26 | . 22 4 Shots . | . . . Rammed 9 | . 7 2 Targets Rammed 9 | . 7 2 Kicked . | . . . Crushed . | . . . Highest Temperature 312 | . 186 312 Average Temperature 73 | . 58 94 Received Heat Transfer 323 | . 114 209 Effects 2 | . . 2 Interference 2 | . . 2 Siege Activations . | . . . Robots Corrupted . | . . . Combat Hostiles . | . . . Parts Fried . | . . . Impact Corruptions . | . . . Robots Melted . | . . . Combat Hostiles . | . . . Parts Melted . | . . . Heat Transferred 1369 | . 666 703 Parts Sabotaged . | . . . Parts Stolen . | . . . Parts Stripped . | . . . Power Chain Reactions . | . . . Alert | -11 -10 -10 ------- Run | Yrd Mat Min Peak Influence 164 | 15 164 87 Initial 8 | . 8 3 Average 63 | 6 73 44 Maximum Alert Level . | . . . Low Security (%) 100 | 100 100 100 Level 1 . | . . . Level 2 . | . . . Level 3 . | . . . Level 4 . | . . . Level 5 . | . . . High Security . | . . . Max Security . | . . . Squads Dispatched 1 | . 1 . Investigation 1 | . 1 . Extermination . | . . . Reinforcement . | . . . Assault . | . . . Garrison . | . . . Intercept . | . . . Searches Triggered . | . . . Construction Impeded . | . . . Haulers Reinforced . | . . . Active Scanning Responses . | . . . Cargo Convoy Interrupts . | . . . Stealth | -11 -10 -10 --------- Run | Yrd Mat Min Distress Signals 1 | . 1 . Communications Jammed . | . . . Distress Signals . | . . . Times Spotted 41 | . 17 24 Peak Tracking Total 9 | . 4 9 Tactical Retreats 3 | . 1 2 Traps | -11 -10 -10 ------- Run | Yrd Mat Min Traps Triggered 1 | . 1 . Indirectly . | . . . Trap Hack Attempts . | . . . Triggered . | . . . Disarmed . | . . . Reprogrammed 1 | . 1 . Reused . | . . . Traps Extracted . | . . . Installed . | . . . Triggered . | . . . Machines | -11 -10 -10 ---------- Run | Yrd Mat Min Machines Disabled 3 | . 1 2 Max in Single Turn 2 | . 1 2 Machines Repaired . | . . . Machines Dismantled . | . . . Machines Sabotaged . | . . . Overloaded Fab Kills . | . . . Hacking | -11 -10 -10 --------- Run | Yrd Mat Min Machines Accessed 10 | . 10 . Terminals 8 | . 8 . Fabricators . | . . . Repair Stations 1 | . 1 . Recycling Units 1 | . 1 . Scanalyzers . | . . . Garrison Access . | . . . Total Hacks 25 | . 25 . Successful 17 | . 17 . Failed 8 | . 8 . Catastrophic . | . . . Database Lockouts . | . . . Manual 4 | . 4 . Terminals 21 | . 21 . Fabricators . | . . . Repair Stations 3 | . 3 . Recycling Units 1 | . 1 . Scanalyzers . | . . . Garrison Access . | . . . Terminal Hacks 11 | . 11 . Prototype ID Bank 1 | . 1 . Emergency Access Points 1 | . 1 . Terminal Index 1 | . 1 . Unreport Threat 2 | . 2 . Locate Traps 3 | . 3 . Reprogram Traps 1 | . 1 . Zone Layout 2 | . 2 . Fabricator Hacks . | . . . Repair Station Hacks 2 | . 2 . Scan Component 1 | . 1 . Repair 1 | . 1 . Recycling Unit Hacks 1 | . 1 . Report Inventory 1 | . 1 . Scanalyzer . | . . . Garrison Access Hacks . | . . . Unauthorized Hacks 3 | . 3 . Terminals 3 | . 3 . Botnet 3 | . 3 . Fabricators . | . . . Repair Stations . | . . . Recycling Units . | . . . Scanalyzers . | . . . Garrison Access . | . . . Data Cores Recovered . | . . . Used . | . . . Hacking Detections 7 | . 7 . Full Trace Events 1 | . 1 . Feedback Events . | . . . Feedback Blocked . | . . . Robot Schematics Acquired . | . . . Robots Built . | . . . Authchips . | . . . Time . | . . . Total Robot Build Rating . | . . . Part Schematics Acquired . | . . . Parts Built . | . . . Authchips . | . . . Time . | . . . Total Part Build Rating . | . . . Parts Repaired 1 | . 1 . Time 32 | . 32 . Parts Recycled . | . . . Recycled Matter . | . . . Retrieved Matter . | . . . Retrieved Components . | . . . Parts Scanalyzed . | . . . Part Schematics Acquired . | . . . Parts Damaged . | . . . Bothacking | -11 -10 -10 ------------ Run | Yrd Mat Min Used RIF Installer . | . . . Robots Hacked . | . . . Non-combat . | . . . Combat . | . . . Robot Hacks Applied . | . . . Relay Couplers Released . | . . . Fabnet Peak Effective % . | . . . Robots Rewired . | . . . Allies Hacked . | . . . Hacks Repelled . | . . . Allies | -11 -10 -10 -------- Run | Yrd Mat Min Total Allies . | . . . Largest Group . | . . . Highest-Rated Group . | . . . Highest-Rated Ally . | . . . Total Orders . | . . . Ally Attacks . | . . . Total Damage . | . . . Kills . | . . . Allies Corrupted . | . . . Allies Melted . | . . . Intel | -11 -10 -10 ------- Run | Yrd Mat Min Robot Analysis Total . | . . . Derelict Logs Recovered . | . . . Drone Launches . | . . . Drone Recoveries . | . . . Exploration | -11 -10 -10 ------------- Run | Yrd Mat Min Turns Passed 1570 | 86 1126 358 Spaces Moved 939 | 50 726 163 Core 19 | 3 . 16 Treads 107 | . 107 . Legs . | . . . Wheels 813 | 47 619 147 Hover . | . . . Flight . | . . . Fastest Speed 50 | 50 95 95 Average Speed 128 | 89 126 145 Slowest Speed 550 | 100 160 550 Overloaded Moves . | . . . Propulsion Burnouts . | . . . Robots Hopped . | . . . Cave-ins Triggered . | . . . Exploration Rate (%) 44 | 4 96 33 Regions Visited 2 Branch Regions 1 Pre-discovered Areas . | . . . Known Exits Taken 1 | . 1 . Unknown Exits Taken 1 | 1 . . Scrap Searched 1 | . . 1 Spaces Dug . | . . . Terrain Destroyed 33 | . . 33 Melee . | . . . Projectile 13 | . . 13 AOE 20 | . . 20 Terrain Rammed . | . . . Walls Destroyed . | . . . Machines Disabled . | . . . Actions | -11 -10 -10 --------- Run | Yrd Mat Min Total 1131 | 75 836 220 Wait 25 | 7 18 . Move 937 | 49 725 163 Hop . | . . . Pick Up 25 | 6 15 4 Fast Attach 9 | 7 2 . Attach 10 | . 2 8 Detach 1 | . 1 . Swap 12 | . 7 5 Drop 13 | . 11 2 Fire 90 | 6 48 36 Melee . | . . . Ram 9 | . 7 2 Kick . | . . . Crush . | . . . Escape Stasis . | . . . Rewire . | . . . Trap . | . . . Miscellaneous . | . . . Route ------- -11/Scrapyard -10/Materials (discovered 4 exits: *Mat x3 / *Min) -10/Mines (discovered 2 exits: *Mat x2) History --------- Turn | Location | Event 8 | -11/Scrapyard | Discovered new exit (range 16) 87 | -11/Scrapyard | Entered Materials 174 | -10/Materials | Discovered new exit (range 3) 310 | -10/Materials | Build established: Mutant 425 | -10/Materials | Discovered new exit (range 4) 614 | -10/Materials | Discovered new exit (range 10) 639 | -10/Materials | Identified exit to Mines 825 | -10/Materials | Discovered new exit (range 10) 855 | -10/Materials | Identified exit to Materials 1088 | -10/Materials | Repaired Particle Gun 1213 | -10/Materials | Entered Mines 1217 | -10/Mines | Discovered exit to Materials (range 7) 1293 | -10/Mines | Discovered exit to Materials (range 8) 1337 | -10/Mines | Assembled infested the area 1342 | -10/Mines | Assisted by a Guerilla fighting off Assembled 1406 | -10/Mines | Lost 5 parts (1p2n2w) 1471 | -10/Mines | Core integrity fell below 50% 1490 | -10/Mines | Joined a pair of Derelicts in attacking an 0b10 outpost 1524 | -10/Mines | Lost 5 parts (1p2n2w) 1553 | -10/Mines | Core integrity fell below 20% 1571 | -10/Mines | Destroyed by as-72951 with Assembled Rifle Last Messages --------------- 01509_ X7-X5B(g) destroyed. 01510_ as-98039 destroyed. 01512_ as-21287 destroyed. 01526_ Acquired EM Pulse Gun. 01549_ K-01 Serf collects debris. 01552_ as-28303 destroyed. 01554_ K-01 Serf collects debris. 01555_ Acquired 54 matter. 01558_ K-01 Serf collects debris. 01563_ Signal Interpreter destroyed. 01563_ System corrupted by crushing effect (+1). 01563_ as-15443 suffers critical hit (Burn). 01563_ as-15443 destroyed. 01564_ K-01 Serf collects debris. 01566_ as-25743 destroyed. 01566_ Switching to secondary target: as-55497. 01567_ Acquired 18 matter. 01568_ K-01 Serf collects debris. 01569_ EM Pulse Gun destroyed. 01569_ K-01 Serf collects debris. Map ----- +----------------------------------------------------+ | #??????????????????# #??## ##???????????????? | | ####??????????????????# #???## #????????????????? | | #?????????????????????# #????# #????????????????? | | #?????????????????????# #????# ???????????????? | | #?????????????????????# #????# ??????????????? | | #######??????????###### #????# < ?????????????? | | #??????????#%%[ #????# ????????????? | | ######?????#%######????# ???????????? | | #### ??????# #?????????# #??????????? | | #### % ##?????#!#?????????## ##??????????? | | #" % #?????# #???????????#######???????????? | | #"! ##????# #?????????????????????????????? | | #"= # ?????# #?????????????????????????????? | | # ] #####???# #?????????????????????????????? | | # ##### #?????????????????????????????? | | # #?????????????????????????????? | | ## ######?????????????????????????????? | | # # #???????????????????##?????????????? | | ## ##?????????????????? ##????????????? | | ## #?????????######???? ### ?????????? | | ## ##???????##"/|"##?? ?????????? | | # # ##??????#""! ""#?# ?????????? | | ### #??????# ## ????????? | | # ## #??????## ## ] ???????? | | ## # ## ##?????###%a## =%! a ???????? | | ?## #### ####### !@=% #?????????????? | | ??# #### ## =*=% #?????????????? | | ??# ###; k%%% % ##?????????????? | | ??# #?#### % % # #??????????????? | | ??#########????###### ##; % ###? #??????????????? | | ????????????????????# ###% ###????#??????????????? | | ???????????????????## #?# #?????????????????????? | | ???????????????????#" ### #?????????????????????? | | ??????????????????# # k %#?????????????????????? | | ?????????????????# ##"###k%#?????????????????????? | | ????????????????# #?# #?#k #?????????????????????? | | ???????????????# #??###? #?????????????????????? | | ???????????????##?????? "#;#?????????????????????? | | ??????????????????????# #?#??????????????????????? | | ??????????????????????# ?????????????????????????? | | ??????????????????????" ?????????????????????????? | | ?????????????????????# ??????????????????????????? | | ????????????????????? ??????????????????????????? | | ????????????????????? ??????????????????????????? | | ???????????????????? ???????????????????????????? | | ???????????????????? ????????????????????????????? | | ??????????????????? ?????????????????????????????? | | ?????????????????????????????????????????????????? | | ?????????????????????????????????????????????????? | | ?????????????????????????????????????????????????? | +----------------------------------------------------+ Best States ------------- Heat Dissipation 25 Energy Generation 14 Energy Capacity 265 Matter Stores 300 Matter Capacity 300 Sight Range 16 Terrain Scan Density 10 Resistance: KI 20 Resistance: TH 20 Resistance: EX 20 Resistance: EM 20 Resistance: I 20 Resistance: S 20 Resistance: P 20 Evasion (%) 44 Recoil Reduction 1 Offensive Hacking 10 Item Schematics ----------------- None Robot Schematics ------------------ None Fabricated ------------ Nothing Alien Tech Used ----------------- None Achievements -------------- Everything Is Under Control Fist Fight Quantum Hacking Challenges ------------ None Game ------ Seed SmallArchitectBeamcaster Manual? 0 Play Time 00:33:56 Cumulative 6.2 hours Start 2024.05.07 @ 19:44:12 End 2024.05.07 @ 20:22:59 Sessions 1 Manual Loads 0 Difficulty Adventurer Special Mode None Game No. 7 Rogue 0 Adventurer 6 Explorer 1 Win Type - Total 0 Types 0/0/0/0/0/0/0/0/0 Lore% 14 Gallery% 12 Achievement% 16 Wizard Run 0 Options --------- Layout 1 ASCII 0 Keyboard 0 Movement Mouse Keybinds 0 Fullscreen 1 Font 24/Swanston Map View 50x40 Zoom Use 13% Tactical HUD 1 Map Filters NONE Filters NONE Steam 1 RUN: 674489f4-8697-4292-b3d0-962d70210c4d